fUSD/lending_fUSD_20240327
["ID","MTS","AMOUNT","RATE_DAILY","PERIOD"]
[320751503,1711545075715,-671.0,0.00055616,120]
[320751504,1711545075726,-500.0,0.00055616,120]
[320751505,1711545075737,-1349.43,0.00055616,120]
[320751506,1711545075748,-785.43,0.00055616,120]
[320751507,1711545075759,-627.15,0.00055616,120]
[320751508,1711545075770,-500.0,0.00055616,120]
[320751509,1711545075780,-563.26,0.00055616,120]
[320751510,1711545075791,-500.0,0.00055616,2]
[320751511,1711545075801,-500.0,0.00055616,120]
[320751512,1711545075812,-500.0,0.00055616,120]
[320751513,1711545075822,-1041.1,0.00055616,120]
[320751514,1711545075832,-500.0,0.00055616,120]
[320751515,1711545075842,-822.73,0.00055616,120]
[320751516,1711545075852,-500.0,0.00055616,120]
[320751517,1711545075862,-500.0,0.00055616,120]
[320751518,1711545075873,-500.0,0.00055616,120]
[320751519,1711545075886,-1945.56,0.00055616,120]
[320751520,1711545075896,-500.0,0.00055616,120]
[320751521,1711545076101,-500.0,0.00055616,120]
[320751522,1711545076113,-500.0,0.00055616,120]
[320751523,1711545076126,-500.0,0.00055616,120]
[320751524,1711545076138,-500.0,0.00055616,120]
[320751525,1711545076150,-500.0,0.00055616,120]
[320751526,1711545076160,-903.23,0.00055616,120]
[320751527,1711545076170,-500.0,0.00055616,120]
[320751528,1711545076180,-500.0,0.00055616,120]
[320751529,1711545076190,-766.51,0.00055616,120]
[320751530,1711545076200,-633.14,0.00055616,120]
[320751531,1711545076209,-488.84,0.00055616,120]
[320751532,1711545076220,-500.0,0.00055616,120]
[320751533,1711545076230,-500.0,0.00055616,120]
[320751534,1711545076241,-500.0,0.00055616,120]
[320751535,1711545076253,-500.0,0.00055616,120]
[320751536,1711545076264,-500.0,0.00055616,120]
[320751537,1711545076274,-500.0,0.00055616,120]
[320751538,1711545076285,-585.06,0.00055616,120]
[320751539,1711545076296,-791.32,0.00055616,30]
[320751540,1711545076307,-500.0,0.00055616,120]
[320751541,1711545076319,-341.58,0.00055616,120]
[320751542,1711545076330,-500.0,0.00055616,120]
[320751543,1711545076341,-500.0,0.00055616,120]
[320751544,1711545076352,-500.0,0.00055616,120]
[320751545,1711545076364,-674.64,0.00055616,120]
[320751546,1711545076375,-500.0,0.00055616,120]
[320751547,1711545076392,-586.28,0.00055616,120]
[320751548,1711545076407,-750.38,0.00055616,120]
[320751549,1711545076418,-500.0,0.00055616,120]
[320751550,1711545076429,-736.03,0.00055616,120]
[320751551,1711545076439,-1420.19,0.00055616,120]
[320751552,1711545076451,-669.83,0.00055616,120]
[320751553,1711545076462,-500.0,0.00055616,120]
[320751554,1711545076473,-709.74,0.00055616,120]
[320751555,1711545076484,-500.0,0.00055616,120]
[320751556,1711545076494,-773.7,0.00055616,120]
[320751557,1711545076505,-500.0,0.00055616,120]
[320751558,1711545076516,-797.13,0.00055616,120]
[320751559,1711545076527,-500.0,0.00055616,120]
[320751560,1711545076537,-500.0,0.00055616,120]
[320751561,1711545076547,-635.43,0.00055616,120]
[320751562,1711545076557,-788.5,0.00055616,120]
[320751563,1711545076567,-510.51563902,0.00055616,120]
[320751564,1711545076578,-558.92,0.00055616,120]
[320751565,1711545076587,-562.65,0.00055616,120]
[320751566,1711545076598,-500.0,0.00055616,120]
[320751567,1711545076607,-500.0,0.00055616,120]
[320751568,1711545076617,-522.89,0.00055616,120]
[320751569,1711545076627,-2029.21,0.00055616,120]
[320751570,1711545076640,-500.0,0.00055616,120]
[320751571,1711545076650,-500.0,0.00055616,120]
[320751572,1711545076660,-500.0,0.00055616,120]
[320751573,1711545076670,-500.0,0.00055616,120]
[320751574,1711545076680,-500.0,0.00055616,120]
[320751575,1711545076690,-500.0,0.00055616,120]
[320751576,1711545076701,-500.0,0.00055616,120]
[320751577,1711545076711,-500.0,0.00055616,120]
[320751578,1711545076722,-500.0,0.00055616,120]
[320751579,1711545076732,-500.0,0.00055616,120]
[320751580,1711545076743,-1002.56,0.00055616,120]
[320751581,1711545076754,-564.14,0.00055616,120]
[320751582,1711545076764,-500.0,0.00055616,120]
[320751583,1711545076774,-696.63,0.00055616,120]
[320751584,1711545076784,-500.0,0.00055616,120]
[320751585,1711545076794,-500.0,0.00055616,120]
[320751586,1711545076805,-500.0,0.00055616,120]
[320751587,1711545076814,-500.0,0.00055616,120]
[320751588,1711545076824,-500.0,0.00055616,120]
[320751589,1711545076834,-1831.21,0.00055616,120]
[320751590,1711545076844,-417.07,0.00055616,120]
[320751591,1711545076854,-500.0,0.00055616,120]
[320751592,1711545076863,-500.0,0.00055616,120]
[320751593,1711545076873,-500.0,0.00055616,120]
[320751594,1711545076882,-500.0,0.00055616,120]
[320751595,1711545076896,-500.0,0.00055616,120]
[320751596,1711545076906,-500.0,0.00055616,120]
[320751597,1711545076917,-500.0,0.00055616,120]
[320751598,1711545076926,-500.0,0.00055616,120]
[320751599,1711545076937,-762.75,0.00055616,120]
[320751600,1711545076947,-500.0,0.00055616,120]
[320751601,1711545076957,-887.04,0.00055616,120]
[320751602,1711545076967,-500.0,0.00055616,120]
[320751603,1711545076977,-500.0,0.00055616,120]
[320751604,1711545076987,-2280.42,0.00055616,120]
[320751605,1711545076997,-500.0,0.00055616,120]
[320751606,1711545077006,-761.49,0.00055616,120]
[320751607,1711545077017,-666.95,0.00055616,120]
[320751608,1711545077030,-572.49,0.00055616,120]
[320751609,1711545077041,-989.63,0.00055616,120]
[320751610,1711545077050,-2038.73,0.00055616,120]
[320751611,1711545077062,-500.0,0.00055616,120]
[320751612,1711545077071,-500.0,0.00055616,120]
[320751613,1711545077081,-966.04,0.00055616,120]
[320751614,1711545077091,-7410.27,0.00055616,120]
[320751615,1711545077102,-591.2,0.00055616,120]
[320751616,1711545077112,-1021.61,0.00055616,120]
[320751617,1711545077121,-917.72,0.00055616,120]
[320751618,1711545077131,-1185.67,0.00055616,120]
[320751619,1711545077145,-4131.44,0.00055616,120]
[320751620,1711545077154,-500.0,0.00055616,120]
[320751621,1711545077164,-500.0,0.00055616,120]
[320751622,1711545077174,-500.0,0.00055616,120]
[320751623,1711545077184,-1840.41,0.00055616,120]
[320751624,1711545077194,-2021.69,0.00055616,120]
[320751625,1711545077203,-500.0,0.00055616,120]
[320751626,1711545077213,-500.0,0.00055616,120]
[320751627,1711545077223,-1046.06,0.00055616,120]
[320751628,1711545077232,-3117.06,0.00055616,120]
[320751629,1711545077248,-881.25,0.00055616,120]
[320751630,1711545077262,-500.0,0.00055616,120]
[320751631,1711545077272,-743.64,0.00055616,120]
[320751632,1711545077282,-6836.54,0.00055616,120]
[320751633,1711545077292,-500.0,0.00055616,120]
[320751634,1711545077301,-2764.61,0.00055616,120]
[320751635,1711545077311,-804.84,0.00055616,120]
[320751636,1711545077320,-1965.13,0.00055616,120]
[320751637,1711545077331,-4896.21,0.00055616,120]
[320751638,1711545077340,-501.09,0.00055616,120]
[320751639,1711545077350,-500.0,0.00055616,120]
[320751640,1711545077359,-797.84,0.00055616,120]
[320751641,1711545077369,-500.0,0.00055616,120]
[320751642,1711545077379,-1995.94,0.00055616,120]
[320751643,1711545077392,-1043.28,0.00055616,120]
[320751644,1711545077401,-500.0,0.00055616,120]
[320751645,1711545077412,-258.62439916,0.00055616,120]
[320751646,1711545077422,-500.0,0.00055616,120]
[320751647,1711545077432,-2893.0,0.00055616,120]
[320751648,1711545077444,-15249.71,0.00055616,120]
[320751649,1711545077454,-500.0,0.00055616,120]
[320751650,1711545077463,-558.52,0.00055616,120]
[320751651,1711545077473,-75992.14,0.00055616,120]
[320751652,1711545077483,-500.0,0.00055616,120]
[320751653,1711545077493,-3596.62,0.00055616,120]
[320751654,1711545077502,-500.0,0.00055616,120]
[320751655,1711545077512,-500.0,0.00055616,120]
[320751656,1711545077522,-3332.62,0.00055616,120]
[320751657,1711545077531,-500.0,0.00055616,120]
[320751658,1711545077540,-4816.18,0.00055616,120]
[320751659,1711545077550,-1863.41,0.00055616,120]
[320751660,1711545077559,-500.0,0.00055616,120]
[320751661,1711545077569,-7622.66,0.00055616,120]
[320751662,1711545077579,-1308.14,0.00055616,120]
[320751663,1711545077588,-500.0,0.00055616,120]
[320751664,1711545077597,-2387.05,0.00055616,120]
[320751665,1711545077607,-6076.26,0.00055616,120]
[320751666,1711545077617,-500.0,0.00055616,120]
[320751667,1711545077626,-1319.68,0.00055616,120]
[320751668,1711545077637,-500.0,0.00055616,120]
[320751669,1711545077647,-500.0,0.00055616,120]
[320751670,1711545077657,-5368.72,0.00055616,120]
[320751671,1711545077666,-500.0,0.00055616,120]
[320751672,1711545077675,-5144.72,0.00055616,120]
[320751673,1711545077685,-500.0,0.00055616,120]
[320751674,1711545077695,-2956.7,0.00055616,120]
[320751675,1711545077705,-989.52,0.00055616,120]
[320751676,1711545077715,-518.82,0.00055616,120]
[320751677,1711545077725,-3326.27,0.00055616,120]
[320751678,1711545077735,-500.0,0.00055616,120]
[320751679,1711545077745,-3041.64,0.00055616,120]
[320751680,1711545077755,-500.0,0.00055616,120]
[320751681,1711545077765,-20346.3,0.00055616,120]
[320751682,1711545077778,-9005.78,0.00055616,120]
[320751683,1711545077789,-641.52,0.00055616,120]
[320751684,1711545077799,-2619.34,0.00055616,120]
[320751685,1711545077809,-500.0,0.00055616,120]
[320751686,1711545077820,-500.0,0.00055616,120]
[320751687,1711545077831,-4819.76,0.00055616,120]
[320751688,1711545077841,-500.0,0.00055616,120]
[320751689,1711545077851,-595.36,0.00055616,120]
[320751690,1711545077861,-4918.59,0.00055616,120]
[320751691,1711545077871,-3188.02,0.00055616,120]
[320751692,1711545077881,-500.0,0.00055616,120]
[320751693,1711545077894,-3264.58,0.00055616,120]
[320751694,1711545077904,-2720.41,0.00055616,120]
[320751695,1711545077914,-1357.49,0.00055616,120]
[320751696,1711545077924,-616.58,0.00055616,120]
[320751697,1711545077934,-500.0,0.00055616,120]
[320751698,1711545077944,-611.94,0.00055616,120]
[320751699,1711545077953,-511.18,0.00055616,120]
[320751700,1711545077963,-500.0,0.00055616,120]
[320751701,1711545077974,-1000.0,0.00055616,14]
[320751702,1711545077983,-513.51796716,0.00055616,120]
[320751703,1711545077993,-5095.68,0.00055616,120]
[320751704,1711545078003,-4056.72,0.00055616,120]
[320751705,1711545078012,-8837.31,0.00055616,120]
[320751706,1711545078025,-1076.16,0.00055616,120]
[320751707,1711545078035,-2391.62,0.00055616,120]
[320751708,1711545078045,-528.46,0.00055616,120]
[320751709,1711545078054,-1376.44,0.00055616,120]
[320751710,1711545078066,-2516.81,0.00055616,120]
[320751711,1711545078076,-41305.17,0.00055616,120]
[320751712,1711545078085,-3046.15,0.00055616,120]
[320751713,1711545078096,-835.27,0.00055616,120]
[320751714,1711545078106,-5486.9,0.00055616,120]
[320751715,1711545078115,-2405.09,0.00055616,120]
[320751716,1711545078125,-500.0,0.00055616,120]
[320751717,1711545078134,-1426.57,0.00055616,120]
[320751718,1711545078145,-2003.76,0.00055616,120]
[320751719,1711545078155,-5722.98,0.00055616,120]
[320751720,1711545078354,-844.73,0.00055616,120]
[320751721,1711545078364,-993.46,0.00055616,120]
[320751722,1711545078373,-6090.95,0.00055616,120]
[320751723,1711545078383,-500.0,0.00055616,120]
[320751724,1711545078396,-1283.48,0.00055616,120]
[320751725,1711545078406,-985.29,0.00055616,120]
[320751726,1711545078415,-671.24,0.00055616,120]
[320751727,1711545078424,-2372.43,0.00055616,120]
[320751728,1711545078434,-500.0,0.00055616,120]
[320751729,1711545078443,-2269.62,0.00055616,120]
[320751730,1711545078453,-3926.77,0.00055616,120]
[320751731,1711545078462,-3735.27,0.00055616,120]
[320751732,1711545078472,-500.0,0.00055616,120]
[320751733,1711545078482,-6290.77,0.00055616,120]
[320751734,1711545078492,-4585.67,0.00055616,120]
[320751735,1711545078501,-13466.38,0.00055616,120]
[320751736,1711545078510,-1447.6,0.00055616,120]
[320751737,1711545078520,-500.0,0.00055616,120]
[320751738,1711545078529,-500.0,0.00055616,120]
[320751739,1711545078539,-1646.74,0.00055616,120]
[320751740,1711545078548,-500.0,0.00055616,120]
[320751741,1711545078559,-3987.19,0.00055616,120]
[320751742,1711545078568,-2105.18,0.00055616,120]
[320751743,1711545078577,-527.29,0.00055616,120]
[320751744,1711545078593,-1059.25,0.00055616,120]
[320751745,1711545078603,-500.0,0.00055616,120]
[320751746,1711545078613,-6467.88,0.00055616,120]
[320751747,1711545078623,-1043.38,0.00055616,120]
[320751748,1711545078633,-5114.35,0.00055616,120]
[320751749,1711545078646,-3638.16,0.00055616,120]
[320751750,1711545078655,-500.76,0.00055616,120]
[320751751,1711545078665,-5717.55,0.00055616,120]
[320751752,1711545078675,-1695.49,0.00055616,120]
[320751753,1711545078686,-3104.92,0.00055616,120]
[320751754,1711545078697,-500.0,0.00055616,120]
[320751755,1711545078707,-500.0,0.00055616,120]
[320751756,1711545078716,-710.05,0.00055616,120]
[320751757,1711545078726,-500.0,0.00055616,120]
[320751758,1711545078735,-9267.85,0.00055616,120]
[320751759,1711545078745,-7768.64,0.00055616,120]
[320751760,1711545078755,-1454.41,0.00055616,120]
[320751761,1711545078766,-791.84,0.00055616,120]
[320751762,1711545078776,-5542.26,0.00055616,120]
[320751763,1711545078786,-51213.0,0.00055616,120]
[320751764,1711545078796,-621.84,0.00055616,120]
[320751765,1711545078806,-500.0,0.00055616,120]
[320751766,1711545078816,-947.8,0.00055616,120]
[320751767,1711545078825,-3395.08,0.00055616,120]
[320751768,1711545078835,-5893.22,0.00055616,120]
[320751769,1711545078844,-500.0,0.00055616,120]
[320751770,1711545078854,-4278.93,0.00055616,120]
[320751771,1711545078864,-500.0,0.00055616,120]
[320751772,1711545078873,-31450.21,0.00055616,120]
[320751773,1711545078883,-5909.33,0.00055616,120]
[320751774,1711545078896,-518.71,0.00055616,120]
[320751775,1711545078906,-614.55,0.00055616,120]
[320751776,1711545078916,-5023.68,0.00055616,120]
[320751777,1711545078925,-2654.52,0.00055616,120]
[320751778,1711545078934,-8389.13,0.00055616,120]
[320751779,1711545078944,-500.0,0.00055616,120]
[320751780,1711545078953,-1079.12,0.00055616,120]
[320751781,1711545078962,-627.77,0.00055616,120]
[320751782,1711545078971,-2857.46,0.00055616,120]
[320751783,1711545078981,-249.28850583,0.00055616,120]
[320751784,1711545078990,-217.93174527,0.00055616,120]
[320751785,1711545078999,-908.56,0.00055616,120]
[320751786,1711545079008,-500.0,0.00055616,120]
[320751787,1711545079019,-15730.44,0.00055616,120]
[320751788,1711545079030,-500.0,0.00055616,7]
[320751789,1711545079039,-500.0,0.00055616,120]
[320751790,1711545079049,-500.0,0.00055616,120]
[320751791,1711545079059,-17684.62,0.00055616,120]
[320751792,1711545079069,-2505.02,0.00055616,120]
[320751793,1711545079078,-1883.86,0.00055616,120]
[320751794,1711545079087,-15538.1,0.00055616,120]
[320751795,1711545079098,-1991.17,0.00055616,120]
[320751796,1711545079107,-392.75663838,0.00055616,120]
[320751797,1711545079117,-3746.02,0.00055616,120]
[320751798,1711545079127,-696.66,0.00055616,120]
[320751799,1711545079138,-20423.54,0.00055616,120]
[320751800,1711545079148,-2000.0,0.00055616,120]
[320751801,1711545079158,-3284.59,0.00055616,120]
[320751802,1711545079168,-500.0,0.00055616,120]
[320751803,1711545079177,-4345.76,0.00055616,120]
[320751804,1711545079188,-2934.36,0.00055616,120]
[320751805,1711545079198,-4666.84,0.00055616,21]
[320751806,1711545079208,-2466.29,0.00055616,120]
[320751807,1711545079218,-3005.61,0.00055616,120]
[320751808,1711545079227,-734.73,0.00055616,120]
[320751809,1711545079237,-5243.53,0.00055616,120]
[320751810,1711545079246,-500.0,0.00055616,120]
[320751811,1711545079255,-500.0,0.00055616,120]
[320751812,1711545079265,-1272.81,0.00055616,120]
[320751813,1711545079282,-7682.89,0.00055616,120]
[320751814,1711545079304,-500.0,0.00055616,120]
[320751815,1711545079321,-2956.88,0.00055616,120]
[320751816,1711545079346,-893.14,0.00055616,120]
[320751817,1711545079363,-500.0,0.00055616,120]
[320751818,1711545079382,-11376.4,0.00055616,120]
[320751819,1711545079404,-500.0,0.00055616,120]
[320751820,1711545079421,-8065.37,0.00055616,120]
[320751821,1711545079441,-1965.98,0.00055616,120]
[320751822,1711545079460,-1547.28,0.00055616,120]
[320751823,1711545079479,-500.0,0.00055616,120]
[320751824,1711545079500,-11227.74,0.00055616,120]
[320751825,1711545079514,-1169.22,0.00055616,120]
[320751826,1711545079531,-1550.86,0.00055616,120]
[320751827,1711545079550,-1389.24,0.00055616,120]
[320751828,1711545079567,-2427.55,0.00055616,120]
[320751829,1711545079585,-500.0,0.00055616,120]
[320751830,1711545079603,-812.47,0.00055616,120]
[320751831,1711545079621,-937.62,0.00055616,120]
[320751832,1711545079639,-621.57,0.00055616,120]
[320751833,1711545079658,-548.55,0.00055616,120]
[320751834,1711545079676,-3287.18,0.00055616,120]
[320751835,1711545079693,-500.0,0.00055616,120]
[320751836,1711545079710,-2626.7,0.00055616,120]
[320751837,1711545079727,-1103.29,0.00055616,120]
[320751838,1711545079743,-2273.64,0.00055616,120]
[320751839,1711545079761,-2808.51,0.00055616,120]
[320751840,1711545079778,-1998.34,0.00055616,120]
[320751841,1711545079794,-593.53,0.00055616,120]
[320751842,1711545079812,-6582.74,0.00055616,120]
[320751843,1711545079833,-919.65,0.00055616,120]
[320751844,1711545079850,-826.55,0.00055616,120]
[320751845,1711545079867,-3143.51,0.00055616,120]
[320751846,1711545079883,-847.53,0.00055616,120]
[320751847,1711545079903,-500.0,0.00055616,85]
[320751848,1711545079919,-535.77,0.00055616,120]
[320751849,1711545079934,-594.87826908,0.00055732,120]
[320751850,1711545079950,-3836.719838,0.00055732,30]
[320751851,1711545079965,-4795.899798,0.00055732,30]
[320751852,1711545079980,-959.179959,0.00055732,30]
[320751853,1711545079995,-959.17996,0.00055732,30]
[320751854,1711545080011,-959.179959,0.00055732,30]
[320751855,1711545080030,-471.098163,0.00055798,109]
[320751856,1711545080046,-1400.0,0.00055844,120]
[320751857,1711545080064,-594.87826908,0.00055879,120]
[320751858,1711545080080,-500.0,0.00055889,90]
[320751859,1711545080097,-500.0,0.00055889,90]
[320751860,1711545080114,-500.0,0.0005589,120]
[320751861,1711545080130,-500.0,0.0005589,120]
[320751862,1711545080150,-500.0,0.0005589,120]
[320751863,1711545080166,-500.0,0.0005589,120]
[320751864,1711545080183,-500.0,0.0005589,120]
[320751865,1711545080198,-500.0,0.0005589,120]
[320751866,1711545080217,-500.0,0.0005589,120]
[320751867,1711545080232,-500.0,0.0005589,120]
[320751868,1711545080247,-500.0,0.0005589,120]
[320751869,1711545080263,-500.0,0.0005589,120]
[320751870,1711545080279,-500.0,0.0005589,120]
[320751871,1711545080294,-500.0,0.0005589,120]
[320751872,1711545080309,-500.0,0.0005589,120]
[320751873,1711545080326,-500.0,0.0005589,120]
[320751874,1711545080341,-500.0,0.0005589,120]
[320751875,1711545080356,-500.0,0.0005589,120]
[320751876,1711545080370,-500.0,0.0005589,120]
[320751877,1711545080385,-500.0,0.0005589,120]
[320751878,1711545080403,-500.0,0.0005589,120]
[320751879,1711545080417,-1961.67,0.0005589,120]
[320751880,1711545080433,-500.0,0.0005589,120]
[320751881,1711545080449,-500.0,0.0005589,120]
[320751882,1711545080464,-820.11,0.0005589,120]
[320751883,1711545080480,-621.56,0.0005589,120]
[320751884,1711545080497,-1615.14,0.0005589,120]
[320751885,1711545080512,-500.0,0.0005589,120]
[320751886,1711545080527,-500.0,0.0005589,120]
[320751887,1711545080542,-500.0,0.0005589,120]
[320751888,1711545080558,-229.96,0.0005589,120]
[320751889,1711545080574,-1181.42,0.0005589,120]
[320751890,1711545080589,-500.0,0.0005589,120]
[320751891,1711545080605,-2874.39,0.0005589,120]
[320751892,1711545080620,-500.0,0.0005589,120]
[320751893,1711545080635,-500.0,0.0005589,120]
[320751894,1711545080654,-500.0,0.0005589,120]
[320751895,1711545080669,-934.73,0.0005589,120]
[320751896,1711545080685,-925.7,0.0005589,120]
[320751897,1711545080701,-500.0,0.0005589,120]
[320751898,1711545080717,-757.64,0.0005589,120]
[320751899,1711545080733,-500.0,0.0005589,120]
[320751900,1711545080748,-500.0,0.0005589,120]
[320751901,1711545080765,-2559.78,0.0005589,120]
[320751902,1711545080781,-500.0,0.0005589,120]
[320751903,1711545080987,-762.08,0.0005589,60]
[320751904,1711545081010,-500.0,0.0005589,120]
[320751905,1711545081023,-2083.65,0.0005589,120]
[320751906,1711545081032,-533.62,0.0005589,120]
[320751907,1711545081042,-1701.37,0.0005589,120]
[320751908,1711545081052,-500.0,0.0005589,120]
[320751909,1711545081063,-957.41,0.0005589,120]
[320751910,1711545081073,-2368.37,0.0005589,120]
[320751911,1711545081082,-500.0,0.0005589,120]
[320751912,1711545081093,-1114.19,0.0005589,120]
[320751913,1711545081103,-500.0,0.0005589,120]
[320751914,1711545081113,-500.0,0.0005589,120]
[320751915,1711545081123,-500.0,0.0005589,120]
[320751916,1711545081132,-500.0,0.0005589,120]
[320751917,1711545081145,-500.0,0.0005589,120]
[320751918,1711545081155,-500.0,0.0005589,120]
[320751919,1711545081165,-500.0,0.0005589,120]
[320751920,1711545081174,-702.41,0.0005589,120]
[320751921,1711545081184,-845.28,0.0005589,120]
[320751922,1711545081193,-857.93,0.0005589,120]
[320751923,1711545081202,-563.4,0.0005589,120]
[320751924,1711545081212,-500.0,0.0005589,120]
[320751925,1711545081221,-665.89,0.0005589,120]
[320751926,1711545081230,-500.0,0.0005589,120]
[320751927,1711545081240,-500.0,0.0005589,120]
[320751928,1711545081249,-500.0,0.0005589,120]
[320751929,1711545081258,-500.0,0.0005589,120]
[320751930,1711545081269,-500.0,0.0005589,120]
[320751931,1711545081288,-500.0,0.0005589,120]
[320751932,1711545081299,-500.0,0.0005589,120]
[320751933,1711545081308,-734.62,0.0005589,120]
[320751934,1711545081318,-1991.27,0.0005589,120]
[320751935,1711545081328,-500.0,0.0005589,120]
[320751936,1711545081338,-500.0,0.0005589,120]
[320751937,1711545081348,-500.0,0.0005589,120]
[320751938,1711545081358,-500.0,0.0005589,120]
[320751939,1711545081368,-982.98,0.0005589,120]
[320751940,1711545081377,-500.0,0.0005589,120]
[320751941,1711545081387,-510.83,0.0005589,120]
[320751942,1711545081401,-500.0,0.0005589,120]
[320751943,1711545081411,-2092.14,0.0005589,120]
[320751944,1711545081421,-500.0,0.0005589,120]
[320751945,1711545081431,-589.59,0.0005589,120]
[320751946,1711545081441,-500.0,0.0005589,120]
[320751947,1711545081451,-500.0,0.0005589,120]
[320751948,1711545081461,-500.0,0.0005589,120]
[320751949,1711545081471,-500.0,0.0005589,120]
[320751950,1711545081481,-1186.03,0.0005589,120]
[320751951,1711545081491,-500.0,0.0005589,120]
[320751952,1711545081501,-688.84,0.0005589,120]
[320751953,1711545081510,-500.0,0.0005589,120]
[320751954,1711545081520,-500.0,0.0005589,120]
[320751955,1711545081531,-500.0,0.0005589,120]
[320751956,1711545081542,-519.0,0.0005589,120]
[320751957,1711545081553,-639.78,0.0005589,120]
[320751958,1711545081563,-500.0,0.0005589,120]
[320751959,1711545081573,-500.0,0.0005589,120]
[320751960,1711545081583,-676.45,0.0005589,120]
[320751961,1711545081593,-500.0,0.0005589,120]
[320751962,1711545081603,-1021.21,0.0005589,120]
[320751963,1711545081613,-694.01,0.0005589,120]
[320751964,1711545081623,-500.0,0.0005589,120]
[320751965,1711545081633,-500.0,0.0005589,120]
[320751966,1711545081646,-602.67,0.0005589,120]
[320751967,1711545081656,-610.8,0.0005589,120]
[320751968,1711545081667,-392.18,0.0005589,120]
[320751969,1711545081676,-289.7,0.0005589,120]
[320751970,1711545081686,-500.0,0.0005589,120]
[320751971,1711545081696,-500.0,0.0005589,120]
[320751972,1711545081707,-636.28,0.0005589,120]
[320751973,1711545081717,-500.0,0.0005589,120]
[320751974,1711545081727,-571.87,0.0005589,120]
[320751975,1711545081737,-935.53,0.0005589,120]
[320751976,1711545081748,-500.0,0.0005589,120]
[320751977,1711545081757,-500.0,0.0005589,120]
[320751978,1711545081767,-1161.12,0.0005589,120]
[320751979,1711545081777,-500.0,0.0005589,120]
[320751980,1711545081787,-500.0,0.0005589,120]
[320751981,1711545081797,-500.0,0.0005589,120]
[320751982,1711545081808,-500.0,0.0005589,120]
[320751983,1711545081817,-500.0,0.0005589,120]
[320751984,1711545081827,-500.0,0.0005589,120]
[320751985,1711545081837,-500.0,0.0005589,120]
[320751986,1711545081847,-1152.46,0.0005589,120]
[320751987,1711545081857,-509.2,0.0005589,120]
[320751988,1711545081867,-500.0,0.0005589,120]
[320751989,1711545081876,-793.3,0.0005589,120]
[320751990,1711545081887,-500.0,0.0005589,120]
[320751991,1711545081899,-500.0,0.0005589,120]
[320751992,1711545081909,-669.53,0.0005589,120]
[320751993,1711545081919,-500.0,0.0005589,120]
[320751994,1711545081930,-807.63,0.0005589,120]
[320751995,1711545081940,-204.38,0.0005589,120]
[320751996,1711545081950,-500.0,0.0005589,120]
[320751997,1711545081960,-500.0,0.0005589,120]
[320751998,1711545081970,-701.89,0.0005589,120]
[320751999,1711545081980,-663.69,0.0005589,120]
[320752000,1711545081990,-794.84,0.0005589,120]
[320752001,1711545082000,-551.28,0.0005589,120]
[320752002,1711545082010,-500.0,0.0005589,120]